fUSD/lending_fUSD_20241009
["ID","MTS","AMOUNT","RATE_DAILY","PERIOD"]
[340084914,1728483068396,-51.37753162,0.00048767,120]
[340084915,1728483068408,-663.02749647,0.00048767,120]
[340084916,1728483068425,-135.87497191,0.00048767,120]
[340084917,1728483068434,-500.0,0.00048767,120]
[340084918,1728483068443,-500.0,0.00048767,120]
[340084919,1728483068452,-947.9,0.00048767,120]
[340084920,1728483068541,-500.0,0.00048767,120]
[340084921,1728483068551,-500.0,0.00048767,120]
[340084922,1728483068560,-434.27422858,0.00048767,120]
[340084923,1728483068574,-500.0,0.00041039,31]
[340084924,1728483068585,-79.84734754,0.00048767,120]
[340084925,1728483068595,-876.86,0.00048767,120]
[340084926,1728483068604,-500.0,0.00048767,120]
[340084927,1728483068613,-500.0,0.00048767,120]
[340084928,1728483068622,-1745.21782808,0.00048767,120]
[340084929,1728483068632,-241.37217192,0.00048767,120]
[340084930,1728483068641,-1210.77,0.00048767,120]
[340084931,1728483068650,-500.0,0.00048767,120]
[340084932,1728483068659,-500.0,0.00048767,120]
[340084933,1728483068673,-1165.3,0.00048767,120]
[340084934,1728483068682,-500.0,0.00048767,120]
[340084935,1728483068691,-500.0,0.00048767,120]
[340084936,1728483068700,-1041.23,0.00048767,120]
[340084937,1728483068709,-500.0,0.00048767,120]
[340084938,1728483068718,-547.28,0.00048767,120]
[340084939,1728483068727,-1134.65,0.00048767,120]
[340084940,1728483068736,-500.0,0.00048767,120]
[340084941,1728483068745,-500.0,0.00048767,120]
[340084942,1728483068754,-500.0,0.00048767,120]
[340084943,1728483068762,-500.0,0.00048767,120]
[340084944,1728483068772,-802.81,0.00048767,120]
[340084945,1728483068781,-600.91,0.00048767,120]
[340084946,1728483068790,-500.0,0.00048767,120]
[340084947,1728483068799,-500.0,0.00048767,120]
[340084948,1728483068808,-602.77,0.00048767,120]
[340084949,1728483068817,-852.96,0.00048767,120]
[340084950,1728483068826,-500.0,0.00048767,120]
[340084951,1728483068836,-500.0,0.00048767,120]
[340084952,1728483068845,-629.59,0.00048767,120]
[340084953,1728483068855,-1451.23,0.00048767,120]
[340084954,1728483068864,-500.0,0.00048767,120]
[340084955,1728483068874,-1122.46,0.00048767,14]
[340084956,1728483068883,-981.98,0.00048767,120]
[340084957,1728483068892,-1136.99,0.00048767,120]
[340084958,1728483068902,-500.0,0.00048767,120]
[340084959,1728483068914,-1055.11,0.00048767,120]
[340084960,1728483068923,-500.0,0.00048767,120]
[340084961,1728483068932,-563.9601649,0.00048767,120]
[340084962,1728483068941,-307.98998718,0.00048767,120]
[340084963,1728483068951,-500.0,0.00048767,120]
[340084964,1728483068961,-500.0,0.00048767,120]
[340084965,1728483068971,-500.0,0.00048767,120]
[340084966,1728483068980,-500.0,0.00048767,120]
[340084967,1728483068989,-500.0,0.00048767,120]
[340084968,1728483068999,-606.49,0.00048767,120]
[340084969,1728483069008,-500.0,0.00048767,120]
[340084970,1728483069017,-573.66,0.00048767,120]
[340084971,1728483069027,-601.49,0.00048767,120]
[340084972,1728483069036,-538.27,0.00048767,120]
[340084973,1728483069046,-601.78,0.00048767,120]
[340084974,1728483069055,-500.0,0.00048767,120]
[340084975,1728483069065,-719.81,0.00048767,120]
[340084976,1728483069075,-262.470746,0.00048767,14]
[340084977,1728483069084,-717.95,0.00048767,120]
[340084978,1728483069093,-831.96,0.00048767,120]
[340084979,1728483069103,-463.23240914,0.00048767,120]
[340084980,1728483069112,-420.59999156,0.00048767,120]
[340084981,1728483069123,-572.98,0.00048767,120]
[340084982,1728483069133,-987.24,0.00048767,7]
[340084983,1728483069142,-151.0,0.00048767,7]
[340084984,1728483069152,-572.85,0.00048767,120]
[340084985,1728483069162,-652.87,0.00048767,120]
[340084986,1728483069171,-500.0,0.00048767,120]
[340084987,1728483069180,-2036.73,0.00048767,120]
[340084988,1728483069190,-874.86,0.00048767,120]
[340084989,1728483069199,-500.0,0.00048767,120]
[340084990,1728483069209,-347.39746356,0.00048767,120]
[340084991,1728483069221,-152.60253644,0.00048767,120]
[340084992,1728483069230,-500.0,0.00048767,120]
[340084993,1728483069239,-445.78146356,0.00048767,120]
[340084994,1728483069250,-205.80853644,0.00048767,120]
[340084995,1728483069260,-500.0,0.00048767,120]
[340084996,1728483069269,-10.35652954,0.00048767,120]
[340084997,1728483069281,-2193.14347046,0.00048767,120]
[340084998,1728483069291,-634.67,0.00048767,120]
[340084999,1728483069302,-500.0,0.00048767,120]
[340085000,1728483069312,-500.0,0.00048767,120]
[340085001,1728483069321,-19175.31,0.00048767,30]
[340085002,1728483069331,-292.27,0.00048767,120]
[340085003,1728483069341,-505.82,0.00048767,120]
[340085004,1728483069350,-500.0,0.00048767,120]
[340085005,1728483069359,-737.32,0.00048767,120]
[340085006,1728483069368,-4241.74,0.00048767,120]
[340085007,1728483069380,-1149.7,0.00048767,120]
[340085008,1728483069393,-500.0,0.00048767,120]
[340085009,1728483069403,-1602.87,0.00048767,120]
[340085010,1728483069413,-4843.9068738,0.00048767,2]
[340085011,1728483069422,-763.91,0.00048767,120]
[340085012,1728483069431,-4633.52,0.00048767,120]
[340085013,1728483069441,-500.0,0.00048767,120]
[340085014,1728483069450,-580.52,0.00048767,120]
[340085015,1728483069459,-500.0,0.00048767,120]
[340085016,1728483069470,-250.0,0.00048767,120]
[340085017,1728483069479,-3031.83,0.00048767,120]
[340085018,1728483069489,-566.12,0.00048767,120]
[340085019,1728483069500,-1074.03,0.00048767,120]
[340085020,1728483069510,-865.65,0.00048767,120]
[340085021,1728483069520,-500.0,0.00048767,120]
[340085022,1728483069529,-1127.61,0.00048767,120]
[340085023,1728483069539,-1189.5,0.00048767,120]
[340085024,1728483069549,-500.0,0.00048767,120]
[340085025,1728483069559,-500.0,0.00048767,120]
[340085026,1728483069569,-500.0,0.00048767,120]
[340085027,1728483069579,-596.3,0.00048767,120]
[340085028,1728483069588,-2227.48,0.00048767,120]
[340085029,1728483069597,-500.0,0.00048767,120]
[340085030,1728483069606,-500.0,0.00048767,120]
[340085031,1728483069615,-500.0,0.00048767,120]
[340085032,1728483069624,-500.0,0.00048767,120]
[340085033,1728483069634,-848.41,0.00048767,120]
[340085034,1728483069644,-549.7,0.00048767,120]
[340085035,1728483069654,-1363.03,0.00048767,120]
[340085036,1728483069666,-414.01808661,0.00048767,120]
[340085037,1728483069675,-500.0,0.00048767,120]
[340085038,1728483069684,-16116.11285014,0.00048767,2]
[340085039,1728483069695,-7533.79919372,0.00048767,2]
[340085040,1728483069706,-6632.92788754,0.00048767,2]
[340085041,1728483069715,-456.1370444,0.00048767,120]
[340085042,1728483069725,-658.7,0.00048767,120]
[340085043,1728483069735,-670.49,0.00048767,120]
[340085044,1728483069744,-784.85,0.00048767,120]
[340085045,1728483069753,-500.0,0.00048767,120]
[340085046,1728483069762,-500.0,0.00048767,120]
[340085047,1728483069771,-843.96,0.00048767,120]
[340085048,1728483069780,-706.69701645,0.00048767,120]
[340085049,1728483069790,-264.13298355,0.00048767,120]
[340085050,1728483069799,-179.09330152,0.00048767,120]
[340085051,1728483069814,-500.0,0.00041039,31]
[340085052,1728483069825,-320.90669848,0.00048767,120]
[340085053,1728483069834,-500.0,0.00048767,120]
[340085054,1728483069844,-500.0,0.00048767,120]
[340085055,1728483069854,-500.0,0.00048767,120]
[340085056,1728483069864,-500.0,0.00048767,120]
[340085057,1728483069873,-500.0,0.00048767,120]
[340085058,1728483069883,-500.0,0.00048767,120]
[340085059,1728483069892,-500.0,0.00048767,120]
[340085060,1728483069901,-500.0,0.00048767,21]
[340085061,1728483069911,-500.0,0.00048767,120]
[340085062,1728483069924,-500.0,0.00048767,120]
[340085063,1728483070013,-500.0,0.00048767,120]
[340085064,1728483070023,-500.0,0.00048767,120]
[340085065,1728483070033,-1177.68,0.00048767,120]
[340085066,1728483070042,-2266.37,0.00048767,120]
[340085067,1728483070051,-1290.11,0.00048767,120]
[340085068,1728483070060,-4920.48,0.00048767,120]
[340085069,1728483070069,-787.34,0.00048767,120]
[340085070,1728483070079,-500.0,0.00048767,120]
[340085071,1728483070088,-683.71,0.00048767,120]
[340085072,1728483070098,-500.0,0.00048767,120]
[340085073,1728483070107,-701.53,0.00048767,120]
[340085074,1728483070117,-500.0,0.00048767,120]
[340085075,1728483070126,-500.0,0.00048767,120]
[340085076,1728483070136,-500.0,0.00048767,120]
[340085077,1728483070145,-1656.33,0.00048767,120]
[340085078,1728483070154,-3462.2460197,0.00048767,2]
[340085079,1728483070166,-4130.35,0.00048767,120]
[340085080,1728483070175,-1089.62,0.00048767,120]
[340085081,1728483070184,-500.0,0.00048767,120]
[340085082,1728483070194,-500.0,0.00048767,120]
[340085083,1728483070203,-1214.33236427,0.00048767,120]
[340085084,1728483070215,-762.78763573,0.00048767,120]
[340085085,1728483070224,-712.61043536,0.00048797,2]
[340085086,1728483070234,-151.100905,0.00048798,120]
[340085087,1728483070243,-694.25720544,0.000488,120]
[340085088,1728483070252,-605.75797526,0.000488,120]
[340085089,1728483070261,-265.72826955,0.000488,120]
[340085090,1728483070270,-151.0,0.000488,7]
[340085091,1728483070279,-151.0,0.000488,14]
[340085092,1728483070288,-151.0,0.000488,14]
[340085093,1728483070299,-151.0,0.000488,14]
[340085094,1728483070309,-151.0,0.000488,14]
[340085095,1728483070318,-2356.89,0.000488,90]
[340085096,1728483070327,-76234.63804356,0.000488,120]
[340085097,1728483070339,-430.18684934,0.000488,120]
[340085098,1728483070355,-334.46771975,0.00041039,31]
[340085099,1728483070364,-4082.89811343,0.000488,120]
[340085100,1728483070378,-506.28464956,0.000488,120]
[340085101,1728483070389,-1295.87497203,0.000488,120]
[340085102,1728483070400,-11258.983078,0.000488,120]
[340085105,1728483722248,-170.29,0.00010959,2]
[340085106,1728483764422,-156.3,0.00019399,2]
[340085107,1728483901411,300.0,0.00019725,2]
[340085108,1728483907858,24543.7,0.00011,2]
[340085109,1728483907897,25000.0,0.00011,2]
[340085110,1728483907925,25000.0,0.00011,2]
[340085111,1728483907965,25000.0,0.00011,2]
[340085112,1728483908003,25000.0,0.00011,2]
[340085113,1728483908032,25000.0,0.00011,2]
[340085114,1728483908062,25000.0,0.00011,2]
[340085115,1728483908090,25000.0,0.00011,2]
[340085116,1728483908119,25000.0,0.00011,2]
[340085117,1728483908150,24829.71,0.00011,2]
[340085118,1728483928674,100000.0,0.000101,2]
[340085119,1728483928703,10491.75879727,0.000101,2]
[340085120,1728483974249,-973.97857708,0.000108,2]
[340085121,1728483974274,-854.37,0.00010959,2]
[340085122,1728483974298,-300.0,0.00010999,2]
[340085123,1728483974327,-97871.65142292,0.00011,2]
[340085124,1728483976062,-100000.0,0.00011,2]
[340085125,1728483977144,-100000.0,0.00011,2]
[340085126,1728483978082,-100000.0,0.00011,2]
[340085127,1728483978992,-100000.0,0.00011,2]
[340085128,1728483979962,-100000.0,0.00011,2]
[340085129,1728483980892,-100000.0,0.00011,2]
[340085130,1728483981751,-100000.0,0.00011,2]
[340085131,1728483982650,-100000.0,0.00011,2]
[340085132,1728483983645,-100000.0,0.00011,2]
[340085133,1728483984510,-100000.0,0.00011,2]
[340085134,1728483985448,-100000.0,0.00011,2]
[340085135,1728483986420,-100000.0,0.00011,2]
[340085136,1728483987274,-100000.0,0.00011,2]
[340085137,1728483988176,-3563.05217679,0.00010997,2]
[340085138,1728483988205,-96436.94782321,0.00011,2]
[340085139,1728484011505,199.83022521,0.00010999,3]
[340085140,1728484011538,2411.3229239,0.00010999,3]
[340085141,1728484011567,200.16977479,0.00010999,3]
[340085142,1728484011595,2411.3229239,0.00010999,3]
[340085143,1728484011624,2411.3229239,0.00010999,3]
[340085144,1728484011651,2411.32292389,0.00010999,3]
[340085145,1728484011685,2411.3229239,0.00010999,3]
[340085146,1728484011713,2411.3229239,0.00010999,3]
[340085147,1728484011893,2411.3229239,0.00010999,3]
[340085148,1728484011923,2411.3229239,0.00010999,3]
[340085149,1728484011951,2411.3229239,0.00010999,3]
[340085150,1728484011986,2411.3229239,0.00010999,3]
[340085151,1728484012014,2411.3229239,0.00010999,3]
[340085152,1728484012045,2411.3229239,0.00010999,3]
[340085153,1728484047286,8800.0,0.000102,3]
[340085154,1728484049440,11864.12491321,0.000103,3]
[340085155,1728484049465,5735.87508679,0.000103,3]
[340085156,1728484051557,26400.0,0.000104,3]
[340085157,1728484053673,17864.12491321,0.000105,3]
[340085158,1728484053698,17335.87508679,0.000105,3]
[340085159,1728484055781,32664.12491321,0.000106,3]
[340085160,1728484055957,11335.87508679,0.000106,3]
[340085161,1728484057897,8800.0,0.000107,3]
[340085162,1728484059997,8800.0,0.000108,3]
[340085163,1728484062098,8800.0,0.000109,3]
[340085164,1728484086420,7573.26664586,0.00013,4]
[340085165,1728484090496,4690.85826735,0.000138,3]
[340085166,1728484090523,50000.0,0.000138,3]
[340085167,1728484090547,50000.0,0.000138,3]
[340085168,1728484090572,50000.0,0.000138,3]
[340085169,1728484090597,42023.90316865,0.000138,3]
[340085170,1728484095390,7976.09683135,0.000139,3]
[340085171,1728484095416,50000.0,0.000139,3]
[340085172,1728484095443,50000.0,0.000139,3]
[340085173,1728484095471,50000.0,0.000139,3]
[340085174,1728484095500,42399.94239065,0.000139,3]
[340085176,1728484121087,150.0,0.000145,3]
[340085189,1728484232137,-300.0,0.00010899,2]
[340085190,1728484232147,-150.0,0.00010899,2]
[340085191,1728484232156,-3338.0965427,0.000109,2]
[340085192,1728484232168,-518.34734357,0.000109,2]
[340085193,1728484232179,-501.95791481,0.000109,2]
[340085194,1728484232191,-848.80884513,0.000109,2]
[340085195,1728484238161,-1363.02997939,0.000109,2]
[340085196,1728484238322,-7262.82221463,0.000109,2]
[340085197,1728484238331,-962.6503,0.000109,2]
[340085198,1728484238343,-1000.0,0.000109,2]
[340085199,1728484238353,-2500.0,0.000109,2]
[340085200,1728484238363,-2153.69137779,0.000109,2]
[340085201,1728484238372,-13405.4859564,0.000109,2]
[340085202,1728484238382,-719.98810302,0.000109,2]
[340085203,1728484238392,-161.63816998,0.000109,2]
[340085204,1728484238402,-1180.37214718,0.000109,2]
[340085205,1728484238411,-789.6987,0.000109,2]
[340085206,1728484238421,-158.46,0.00010959,2]
[340085207,1728484238430,-500.0,0.00010973,2]
[340085208,1728484238439,-503.97595646,0.00010973,2]
[340085209,1728484238449,-207.42636909,0.0001099,2]
[340085210,1728484238458,-213.62382257,0.00010999,2]
[340085211,1728484238467,-501.17066642,0.00010999,2]
[340085212,1728484238476,-500.0,0.00010999,2]
[340085213,1728484238486,-500.0,0.00010999,2]
[340085214,1728484238495,-500.0,0.00010999,2]
[340085215,1728484238505,-431.59729683,0.00010999,2]
[340085216,1728484238514,-500.0,0.00010999,2]
[340085217,1728484238524,-500.0,0.00010999,2]
[340085218,1728484238533,-500.0,0.00010999,2]
[340085219,1728484238543,-500.0,0.00010999,2]
[340085220,1728484238552,-604521.22367047,0.00011,2]
[340085221,1728484238565,-7626.19378738,0.00011,2]
[340085222,1728484238576,-16932.32639603,0.00011,2]
[340085223,1728484238738,-2546.6,0.00011,2]
[340085224,1728484238750,-326.5309673,0.00011,2]
[340085225,1728484238761,-878.69942469,0.00011,2]
[340085226,1728484240151,-9168.2448,0.00011,2]
[340085227,1728484240312,-2696.73915138,0.00011,2]
[340085228,1728484240323,-384.84885522,0.00011,2]
[340085229,1728484240511,-1418.22338616,0.00011,2]
[340085230,1728484240522,-353.86000002,0.00011,2]
[340085232,1728484243069,-366.4740872,0.000109,2]
[340085233,1728484243078,-89355.28856001,0.00011,2]
[340085234,1728484243111,-4608.06807084,0.00011,2]
[340085235,1728484243122,-40909.22753173,0.00011,2]
[340085236,1728484243133,-5250.00000002,0.00011,2]
[340085237,1728484243364,-182194.43938961,0.00011,2]
[340085238,1728484243379,-2717.78507958,0.00011,2]
[340085239,1728484243391,-12479.99999997,0.00011,2]
[340085240,1728484243414,-9395.61112557,0.00011,2]
[340085241,1728484243425,-689.2999998,0.00011,2]
[340085243,1728484246028,-1940.73829803,0.00011,2]
[340085244,1728484246075,-25449.9999,0.00011,2]
[340085245,1728484246085,-8400.0,0.00011,2]
[340085246,1728484246120,-1242.40000003,0.00011,2]
[340085247,1728484246162,-6208.34880148,0.00011,2]
[340085248,1728484246313,-290.38875,0.00011,2]
[340085249,1728484246325,-14588.18200847,0.00011,2]
[340085256,1728484246415,-2876757.69740748,0.00011,2]
[340085291,1728484389315,7450.05760935,0.000138,3]
[340085292,1728484389344,8942.83917745,0.000138,3]
[340085293,1728484391752,1238.680797,0.000139,3]
[340085294,1728484498649,494.86500241,0.00010999,3]
[340085295,1728484686104,18975.5337338,0.000138,3]
[340085296,1728484687340,4007.5207846,0.000139,3]
[340085297,1728484914897,3831.81,0.00025999,120]
[340085298,1728484951339,11059.0,0.0002111,120]
[340085299,1728485238057,800.0,0.000101,3]
[340085300,1728485240183,1700.0,0.000102,3]
[340085301,1728485242347,2600.0,0.000103,3]
[340085302,1728485244470,3500.0,0.000104,3]
[340085303,1728485246739,4400.0,0.000105,3]
[340085304,1728485248898,800.0,0.000106,3]
[340085305,1728485251047,800.0,0.000107,3]
[340085306,1728485253360,800.0,0.000108,3]
[340085307,1728485255508,800.0,0.000109,3]
[340085335,1728485432235,-150.0,0.00010899,2]
[340085337,1728485432244,-151.30053413,0.000109,2]
[340085339,1728485432255,-195.01873003,0.000109,2]
[340085340,1728485432268,-291.33856997,0.000109,2]
[340085341,1728485432279,-66.69249855,0.000109,2]
[340085342,1728485432290,-344.19142609,0.000109,2]
[340085343,1728485432311,-1283.0,0.000109,2]
[340085344,1728485432323,-260.57341027,0.000109,2]
[340085345,1728485432334,-449.39157075,0.000109,2]
[340085346,1728485432346,-125.01629434,0.000109,2]
[340085347,1728485432354,-1000.0,0.000109,2]
[340085348,1728485432364,-173.389809,0.000109,2]
[340085349,1728485432373,-384.833,0.000109,2]
[340085350,1728485432382,-2563.80985966,0.000109,2]
[340085351,1728485432394,-255.97559429,0.000109,2]
[340085352,1728485432416,-645.2515,0.000109,2]
[340085353,1728485432427,-4474.82,0.000109,2]
[340085354,1728485432438,-2314.4383043,0.000109,2]
[340085355,1728485432527,-741.4673214,0.000109,2]
[340085357,1728485432539,-279.69657276,0.000109,2]
[340085359,1728485432552,-1075.43,0.000109,2]
[340085360,1728485432564,-41.98834759,0.000109,2]
[340085361,1728485432573,-510.47470426,0.000109,2]
[340085362,1728485438420,-307.11088026,0.000108,2]
[340085363,1728485438430,-9.88078065,0.000109,2]
[340085364,1728485438590,-264.399938,0.000109,2]
[340085365,1728485438709,-1373.83926939,0.000109,2]
[340085366,1728485438722,-720.60416572,0.000109,2]
[340085367,1728485438732,-2499.615,0.000109,2]
[340085368,1728485438742,-170.29,0.00010959,2]
[340085369,1728485438751,-159.21,0.00010959,2]
[340085370,1728485438761,-854.37,0.00010959,2]
[340085371,1728485438770,-402.76862788,0.00010973,2]
[340085372,1728485438779,-823.01,0.00010999,2]
[340085373,1728485438788,-499.99,0.00010999,2]
[340085374,1728485438798,-9120.1422064,0.00011,2]
[340085375,1728485438811,-5340.57347173,0.00011,2]
[340085376,1728485438823,-1992.75831342,0.00011,2]
[340085377,1728485438848,-1743.85,0.00010959,2]
[340085378,1728485438857,-11653.77019626,0.00011,2]
[340085379,1728485438868,-31925.2012,0.00011,2]
[340085380,1728485438879,-13565.0,0.00011,2]
[340085381,1728485438890,-24528.90035,0.00011,2]
[340085382,1728485438901,-54170.55,0.00011,2]
[340085383,1728485438912,-9553.154996,0.00011,2]
[340085384,1728485438923,-9084.2900005,0.00011,2]
[340085385,1728485438933,-13724.235,0.00011,2]
[340085386,1728485438944,-1384.75,0.00011,2]
[340085387,1728485438959,-5915.5,0.00011,2]
[340085388,1728485438970,-35690.70655081,0.00011,2]
[340085389,1728485438981,-89412.23001679,0.00011,2]
[340085391,1728485438995,-496.742,0.00011,2]
[340085397,1728485440328,-2292.942009,0.00011,2]
[340085398,1728485440366,-64402.54224432,0.00011,2]
[340085399,1728485440381,-567.47630682,0.00011,2]
[340085400,1728485440635,-423.78000002,0.00011,2]
[340085401,1728485440646,-308.61,0.00011,2]
[340085415,1728485443407,-2620.0,0.00011,2]
[340085433,1728485443971,-12648.50162918,0.00011,2]
[340085434,1728485443982,-6104.87631755,0.00011,2]
[340085435,1728485443994,-644.9484743,0.00011,2]
[340085436,1728485444005,-2775.87,0.00011,2]
[340085437,1728485444020,-12880.03667055,0.00011,2]
[340085440,1728485446238,-1234.0,0.00011,2]
[340085441,1728485446282,-401.82913947,0.00011,2]
[340085442,1728485446429,-321236.36058776,0.00011,2]
[340085443,1728485446564,-1592.03474949,0.00011,2]
[340085444,1728485446607,-47591.007,0.00011,2]
[340085449,1728485585824,140.56050474,0.000138,3]
[340085458,1728486396920,27545.6298837,0.0001,2]
[340085463,1728486631506,-155.03679,0.0001089,2]
[340085464,1728486631516,-150.0,0.00010899,2]
[340085465,1728486631525,-300.0,0.00010899,2]
[340085466,1728486631535,-323.27633994,0.000109,2]
[340085467,1728486631544,-467.5342,0.000109,2]
[340085468,1728486631553,-3274.73407373,0.000109,2]
[340085469,1728486631565,-418.71382403,0.000109,2]
[340085470,1728486631577,-100476.87370224,0.000109,2]
[340085471,1728486631587,-346.77961796,0.000109,2]
[340085472,1728486631596,-172.932823,0.000109,2]
[340085473,1728486631606,-47705.12524928,0.000109,2]
[340085474,1728486631615,-2424.53576839,0.000109,2]
[340085475,1728486631624,-429.89822002,0.000109,2]
[340085476,1728486631633,-366.4740872,0.000109,2]
[340085477,1728486631643,-1941.41400334,0.000109,2]
[340085478,1728486631653,-1176.65125936,0.000109,2]
[340085479,1728486631662,-389.97568132,0.000109,2]
[340085480,1728486631672,-152.99,0.00010959,2]
[340085481,1728486631684,-14540.89882693,0.00011,2]
[340085482,1728486631696,-1307.31908016,0.00011,2]
[340085483,1728486631707,-6178.9825058,0.00011,2]
[340085484,1728486631719,-8606.23695535,0.00011,2]
[340085490,1728486631790,-793.44668693,0.00011,2]
[340085492,1728486631802,-5054.14379508,0.00011,2]
[340085494,1728486631813,-6225.7093259,0.00011,2]
[340085496,1728486631825,-3861.78600805,0.00011,2]
[340085498,1728486631836,-328.01300429,0.00011,2]
[340085500,1728486631848,-9742.22354473,0.00011,2]
[340085503,1728486631863,-849.97896667,0.00011,2]
[340085505,1728486631874,-549.255392,0.00011,2]
[340085507,1728486631885,-5409.42459508,0.00011,2]
[340085510,1728486631901,-2080.63,0.00011,2]
[340085512,1728486631912,-42207.06004942,0.00011,2]
[340085514,1728486631924,-1160.73125044,0.00011,2]
[340085516,1728486631935,-489.907022,0.00011,2]
[340085518,1728486631947,-328.4348001,0.00011,2]
[340085520,1728486631962,-360.246502,0.00011,2]
[340085523,1728486631974,-2800.0,0.00011,2]
[340085525,1728486631986,-495.72833055,0.00011,2]
[340085549,1728486637584,-2144.37888385,0.00011,2]
[340085550,1728486637595,-1000.0,0.00011,2]
[340085551,1728486637606,-360.53268373,0.00011,2]
[340085552,1728486637661,-4524262.77721046,0.00011,2]
[340085553,1728486637672,-839877.77233526,0.00011,2]
[340085554,1728486637683,-299.81457294,0.00011,2]
[340085555,1728486637694,-572.13343351,0.00011,2]
[340085556,1728486637725,-581.0996,0.00011,2]
[340085557,1728486637737,-616.0766574,0.00011,2]
[340085558,1728486637748,-600.5,0.00011,2]
[340085559,1728486637759,-3013.58673412,0.00011,2]
[340085560,1728486637770,-291.74931873,0.00011,2]
[340085561,1728486637798,-628.01,0.00011,2]
[340085562,1728486637810,-477.85701832,0.00011,2]
[340085563,1728486637851,-3219.35090957,0.00011,2]
[340085564,1728486637862,-10903.20915914,0.00011,2]
[340085566,1728486639477,-1891.89,0.00011,2]
[340085568,1728486639568,-842.40632519,0.00011,2]
[340085569,1728486639581,-7764.22947945,0.00011,2]
[340085570,1728486639645,-370.43892083,0.00011,2]
[340085571,1728486639657,-581.17894343,0.00011,2]
[340085572,1728486639668,-2588.90000003,0.00011,2]
[340085573,1728486639723,-1344.25561625,0.00011,2]
[340085574,1728486639739,-848.29047585,0.00011,2]
[340085575,1728486639763,-14645.99455641,0.00011,2]
[340085600,1728486642484,-32303.64912985,0.00011,2]
[340085602,1728486642570,-61337.48445859,0.00011,2]
[340085603,1728486642582,-256.69369551,0.00011,2]
[340085604,1728486642593,-61466.95491384,0.00011,2]
[340085605,1728486642604,-566.6858274,0.00011,2]
[340085606,1728486642614,-1260.0,0.00011,2]
[340085607,1728486642880,-2.5007413,0.00011,2]
[340085608,1728486642891,-159785.68950957,0.00011,2]
[340085609,1728486642907,-363.3058,0.00011,2]
[340085610,1728486642918,-3511.54956533,0.00011,2]
[340085611,1728486642936,-454.19968533,0.00011,2]
[340085612,1728486642947,-3230.70846362,0.00011,2]
[340085614,1728486645410,-9002.72690644,0.00011,2]
[340085615,1728486645479,-260.95564108,0.00011,2]
[340085616,1728486645680,-1525791.11390031,0.00011,2]
[340085617,1728486645692,-287.9192,0.00011,2]
[340085618,1728486645703,-1282.6269646,0.00011,2]
[340085619,1728486833613,-2714.8134,0.000108,2]
[340085620,1728486833633,-7139.81418896,0.000109,2]
[340085621,1728486833656,-166.78438949,0.000109,2]
[340085622,1728486833681,-159.59588203,0.000109,2]
[340085623,1728486833700,-316.48921528,0.000109,2]
[340085624,1728486833720,-2500.0,0.000109,2]
[340085625,1728486833740,-7500.0,0.000109,2]
[340085626,1728486833760,-3951.99451407,0.000109,2]
[340085627,1728486833779,-211.9,0.00010959,2]
[340085628,1728486833798,-511.8498062,0.00010973,2]
[340085629,1728486833817,-430.77921925,0.00010973,2]
[340085630,1728486833835,-500.0,0.00010973,2]